[Event "Titled Tuesday Blitz March 28 Late 2023"]
[White "Romanchuk, Viktor"]
[Black "Ozen, Bahadir"]
[WhiteFideId "14109271"]
[BlackFideId "6337058"]
[WhiteElo "2242"]
[BlackElo "2503"]
[Result "1/2-1/2"]
[Round "06"]
[TimeControl "180+2"]
[Date "2023.03.28"]
[WhiteClock "0:00:03"]
[BlackClock "0:00:18"]

1. d4 {[%clk 0:03:00]}  h6 {[%clk 0:02:54]} 2. c4 {[%clk 0:03:00]}  e6 {[%clk 0:02:55]} 3. Nc3 {[%clk 0:02:59]}  Bb4 {[%clk 0:02:50]} 4. e3 {[%clk 0:02:58]}  Nf6 {[%clk 0:02:46]} 5. Ne2 {[%clk 0:02:58]}  d5 {[%clk 0:02:38]} 6. a3 {[%clk 0:02:57]}  Be7 {[%clk 0:02:38]} 7. cxd5 {[%clk 0:02:56]}  exd5 {[%clk 0:02:37]} 8. Nf4 {[%clk 0:02:56]}  O-O {[%clk 0:02:36]} 9. Bd3 {[%clk 0:02:56]}  c6 {[%clk 0:02:32]} 10. O-O {[%clk 0:02:56]}  a5 {[%clk 0:02:31]} 11. f3 {[%clk 0:02:46]}  Na6 {[%clk 0:02:28]} 12. Bc2 {[%clk 0:02:37]}  Re8 {[%clk 0:02:23]} 13. e4 {[%clk 0:02:30]}  dxe4 {[%clk 0:02:23]} 14. fxe4 {[%clk 0:02:29]}  c5 {[%clk 0:02:05]} 15. e5 {[%clk 0:02:15]}  Ng4 {[%clk 0:01:51]} 16. e6 {[%clk 0:01:35]}  Qxd4+ {[%clk 0:01:35]} 17. Qxd4 {[%clk 0:01:33]}  cxd4 {[%clk 0:01:36]} 18. exf7+ {[%clk 0:01:33]}  Kxf7 {[%clk 0:01:37]} 19. Bg6+ {[%clk 0:00:41]}  Kg8 {[%clk 0:01:37]} 20. Ncd5 {[%clk 0:00:38]}  d3 {[%clk 0:00:54]} 21. Bxe8 {[%clk 0:00:29]}  Bc5+ {[%clk 0:00:54]} 22. Kh1 {[%clk 0:00:28]}  Bf5 {[%clk 0:00:54]} 23. Bh5 {[%clk 0:00:26]}  Nf2+ {[%clk 0:00:42]} 24. Rxf2 {[%clk 0:00:25]}  Bxf2 {[%clk 0:00:43]} 25. Bd2 {[%clk 0:00:22]}  Kh8 {[%clk 0:00:35]} 26. Ne3 {[%clk 0:00:20]}  Bh7 {[%clk 0:00:35]} 27. Ng6+ {[%clk 0:00:19]}  Bxg6 {[%clk 0:00:34]} 28. Bxg6 {[%clk 0:00:18]}  Re8 {[%clk 0:00:35]} 29. Ng4 {[%clk 0:00:18]}  Re2 {[%clk 0:00:34]} 30. Bxa5 {[%clk 0:00:16]}  d2 {[%clk 0:00:34]} 31. Bxd2 {[%clk 0:00:15]}  Rxd2 {[%clk 0:00:35]} 32. Nxf2 {[%clk 0:00:15]}  Rxf2 {[%clk 0:00:36]} 33. Rc1 {[%clk 0:00:14]}  Rf8 {[%clk 0:00:28]} 34. h3 {[%clk 0:00:14]}  b6 {[%clk 0:00:23]} 35. Rc6 {[%clk 0:00:13]}  Nc5 {[%clk 0:00:23]} 36. Rxb6 {[%clk 0:00:12]}  Nd7 {[%clk 0:00:21]} 37. Rb7 {[%clk 0:00:11]}  Ne5 {[%clk 0:00:21]} 38. Be4 {[%clk 0:00:12]}  Kg8 {[%clk 0:00:17]} 39. Ra7 {[%clk 0:00:12]}  Rf1+ {[%clk 0:00:15]} 40. Kh2 {[%clk 0:00:11]}  Rf4 {[%clk 0:00:16]} 41. Bd5+ {[%clk 0:00:11]}  Kf8 {[%clk 0:00:17]} 42. Rb7 {[%clk 0:00:10]}  Rd4 {[%clk 0:00:17]} 43. Bb3 {[%clk 0:00:08]}  Rd2 {[%clk 0:00:17]} 44. a4 {[%clk 0:00:08]}  Rxb2 {[%clk 0:00:16]} 45. a5 {[%clk 0:00:09]}  Nf3+ {[%clk 0:00:17]} 46. Kg3 {[%clk 0:00:08]}  Nd4 {[%clk 0:00:18]} 47. a6 {[%clk 0:00:08]}  Nxb3 {[%clk 0:00:16]} 48. a7 {[%clk 0:00:07]}  Ra2 {[%clk 0:00:17]} 49. Rb8+ {[%clk 0:00:07]}  Kf7 {[%clk 0:00:17]} 50. a8=Q {[%clk 0:00:07]}  Rxa8 {[%clk 0:00:18]} 51. Rxa8 {[%clk 0:00:08]}  Nd4 {[%clk 0:00:18]} 52. Ra4 {[%clk 0:00:08]}  Nf5+ {[%clk 0:00:18]} 53. Kf4 {[%clk 0:00:08]}  Nd6 {[%clk 0:00:19]} 54. Ra6 {[%clk 0:00:08]}  Nc4 {[%clk 0:00:19]} 55. Kf5 {[%clk 0:00:07]}  Ne3+ {[%clk 0:00:18]} 56. Kf4 {[%clk 0:00:07]}  Nxg2+ {[%clk 0:00:19]} 57. Kg3 {[%clk 0:00:07]}  Ne3 {[%clk 0:00:19]} 58. Ra5 {[%clk 0:00:07]}  Kf6 {[%clk 0:00:19]} 59. Kf4 {[%clk 0:00:08]}  Nc4 {[%clk 0:00:19]} 60. Ra6+ {[%clk 0:00:07]}  Kf7 {[%clk 0:00:19]} 61. Rc6 {[%clk 0:00:08]}  Nd2 {[%clk 0:00:19]} 62. Rc2 {[%clk 0:00:08]}  Nb3 {[%clk 0:00:19]} 63. Rc4 {[%clk 0:00:08]}  Nd2 {[%clk 0:00:20]} 64. Rd4 {[%clk 0:00:07]}  Nb3 {[%clk 0:00:20]} 65. Rd5 {[%clk 0:00:07]}  Ke6 {[%clk 0:00:21]} 66. Rb5 {[%clk 0:00:07]}  Nd4 {[%clk 0:00:21]} 67. Rb6+ {[%clk 0:00:07]}  Kf7 {[%clk 0:00:21]} 68. Rd6 {[%clk 0:00:07]}  Ne6+ {[%clk 0:00:22]} 69. Ke5 {[%clk 0:00:07]}  Nf8 {[%clk 0:00:22]} 70. Ra6 {[%clk 0:00:07]}  Ng6+ {[%clk 0:00:23]} 71. Kf5 {[%clk 0:00:06]}  Ne7+ {[%clk 0:00:23]} 72. Kf4 {[%clk 0:00:07]}  Nd5+ {[%clk 0:00:23]} 73. Ke5 {[%clk 0:00:07]}  Nf6 {[%clk 0:00:23]} 74. Ra7+ {[%clk 0:00:07]}  Kg6 {[%clk 0:00:24]} 75. Ra6 {[%clk 0:00:08]}  Kg5 {[%clk 0:00:24]} 76. Ra1 {[%clk 0:00:07]}  Kh4 {[%clk 0:00:20]} 77. Rg1 {[%clk 0:00:06]}  Nh5 {[%clk 0:00:21]} 78. Kf5 {[%clk 0:00:04]}  g5 {[%clk 0:00:21]} 79. Kg6 {[%clk 0:00:03]}  Nf4+ {[%clk 0:00:16]} 80. Kxh6 {[%clk 0:00:03]}  Nxh3 {[%clk 0:00:17]} 81. Rxg5 {[%clk 0:00:03]}  Nxg5 {[%clk 0:00:18]} 1/2-1/2


[Site "https://www.chess.com"]

[Event "Titled Tuesday Blitz March 28 Late 2023"]
[White "Grebeniuk, Semen"]
[Black "Aradhya, Garg"]
[WhiteFideId "14117509"]
[BlackFideId "25006746"]
[WhiteElo "2266"]
[BlackElo "2263"]
[Result "0-1"]
[Round "06"]
[TimeControl "180+2"]
[Date "2023.03.28"]
[WhiteClock "0:00:36"]
[BlackClock "0:02:06"]

1. d4 {[%clk 0:03:00]}  d5 {[%clk 0:02:59]} 2. c4 {[%clk 0:03:01]}  c6 {[%clk 0:03:00]} 3. cxd5 {[%clk 0:03:01]}  cxd5 {[%clk 0:03:01]} 4. Bf4 {[%clk 0:03:01]}  Nf6 {[%clk 0:03:00]} 5. e3 {[%clk 0:03:02]}  Nc6 {[%clk 0:03:00]} 6. Nc3 {[%clk 0:03:02]}  Bf5 {[%clk 0:03:00]} 7. Qb3 {[%clk 0:03:01]}  Na5 {[%clk 0:02:56]} 8. Qa4+ {[%clk 0:02:54]}  Bd7 {[%clk 0:02:57]} 9. Qc2 {[%clk 0:02:54]}  e6 {[%clk 0:02:49]} 10. Nf3 {[%clk 0:02:54]}  Nc6 {[%clk 0:02:47]} 11. a3 {[%clk 0:02:51]}  Be7 {[%clk 0:02:47]} 12. Bd3 {[%clk 0:02:51]}  Nh5 {[%clk 0:02:46]} 13. Bg3 {[%clk 0:02:45]}  Nxg3 {[%clk 0:02:46]} 14. hxg3 {[%clk 0:02:46]}  g6 {[%clk 0:02:46]} 15. O-O {[%clk 0:02:31]}  Kf8 {[%clk 0:02:45]} 16. b4 {[%clk 0:02:29]}  Rc8 {[%clk 0:02:44]} 17. Qb3 {[%clk 0:02:27]}  Kg7 {[%clk 0:02:43]} 18. Na4 {[%clk 0:02:26]}  b6 {[%clk 0:02:41]} 19. Ba6 {[%clk 0:02:26]}  Rc7 {[%clk 0:02:40]} 20. Nc3 {[%clk 0:02:27]}  Nb8 {[%clk 0:02:34]} 21. Bd3 {[%clk 0:02:27]}  a6 {[%clk 0:02:33]} 22. Ne5 {[%clk 0:02:24]}  Qc8 {[%clk 0:02:29]} 23. Rfc1 {[%clk 0:02:21]}  Qb7 {[%clk 0:02:30]} 24. b5 {[%clk 0:01:53]}  axb5 {[%clk 0:02:25]} 25. Nxd7 {[%clk 0:01:47]}  Nxd7 {[%clk 0:02:25]} 26. Nxb5 {[%clk 0:01:48]}  Rxc1+ {[%clk 0:02:24]} 27. Rxc1 {[%clk 0:01:49]}  Rc8 {[%clk 0:02:24]} 28. Rxc8 {[%clk 0:01:43]}  Qxc8 {[%clk 0:02:24]} 29. a4 {[%clk 0:01:42]}  Qc1+ {[%clk 0:02:23]} 30. Kh2 {[%clk 0:01:41]}  Nf6 {[%clk 0:02:23]} 31. Be2 {[%clk 0:01:23]}  Qe1 {[%clk 0:02:21]} 32. Nc3 {[%clk 0:01:00]}  Qxf2 {[%clk 0:02:19]} 33. Qxb6 {[%clk 0:01:00]}  Qxe3 {[%clk 0:02:15]} 34. Qb2 {[%clk 0:00:43]}  Bd6 {[%clk 0:02:09]} 35. a5 {[%clk 0:00:36]}  Bxg3+ {[%clk 0:02:06]} 0-1


[Site "https://www.chess.com"]

[Event "Titled Tuesday Blitz March 28 Late 2023"]
[White "Veiga, Jose Francisco R P Neves"]
[Black "angelgab3"]
[WhiteFideId "1930087"]
[WhiteElo "2320"]
[BlackElo "2536"]
[Result "0-1"]
[Round "06"]
[TimeControl "180+2"]
[Date "2023.03.28"]
[WhiteClock "0:00:01"]
[BlackClock "0:00:20"]

1. e4 {[%clk 0:02:47]}  e5 {[%clk 0:02:59]} 2. Nc3 {[%clk 0:02:44]}  Bc5 {[%clk 0:02:57]} 3. Bc4 {[%clk 0:02:44]}  d6 {[%clk 0:02:54]} 4. d3 {[%clk 0:02:41]}  Nf6 {[%clk 0:02:52]} 5. Na4 {[%clk 0:02:40]}  a6 {[%clk 0:02:42]} 6. Nxc5 {[%clk 0:02:39]}  dxc5 {[%clk 0:02:43]} 7. Nf3 {[%clk 0:02:36]}  Qe7 {[%clk 0:02:43]} 8. O-O {[%clk 0:02:35]}  Bg4 {[%clk 0:02:42]} 9. h3 {[%clk 0:02:35]}  Bd7 {[%clk 0:02:40]} 10. a4 {[%clk 0:02:25]}  Nc6 {[%clk 0:02:39]} 11. a5 {[%clk 0:02:25]}  h6 {[%clk 0:02:38]} 12. Bd2 {[%clk 0:02:25]}  g5 {[%clk 0:02:37]} 13. Nh2 {[%clk 0:02:25]}  Rg8 {[%clk 0:02:20]} 14. c3 {[%clk 0:02:21]}  h5 {[%clk 0:02:19]} 15. b4 {[%clk 0:02:09]}  cxb4 {[%clk 0:02:17]} 16. cxb4 {[%clk 0:02:09]}  Nd4 {[%clk 0:02:17]} 17. Nf3 {[%clk 0:01:06]}  Nxf3+ {[%clk 0:01:38]} 18. Qxf3 {[%clk 0:01:07]}  g4 {[%clk 0:01:39]} 19. hxg4 {[%clk 0:01:07]}  Bxg4 {[%clk 0:01:31]} 20. Qe3 {[%clk 0:01:06]}  h4 {[%clk 0:01:26]} 21. Kh1 {[%clk 0:00:56]}  Be6 {[%clk 0:01:18]} 22. Rac1 {[%clk 0:00:42]}  Ng4 {[%clk 0:00:59]} 23. Qc5 {[%clk 0:00:40]}  Qxc5 {[%clk 0:00:55]} 24. bxc5 {[%clk 0:00:41]}  Bxc4 {[%clk 0:00:49]} 25. Rxc4 {[%clk 0:00:40]}  O-O-O {[%clk 0:00:49]} 26. f3 {[%clk 0:00:05]}  Nf6 {[%clk 0:00:49]} 27. Bc3 {[%clk 0:00:04]}  Rxd3 {[%clk 0:00:34]} 28. c6 {[%clk 0:00:02]}  bxc6 {[%clk 0:00:29]} 29. Bxe5 {[%clk 0:00:02]}  Nd7 {[%clk 0:00:30]} 30. Bf4 {[%clk 0:00:02]}  c5 {[%clk 0:00:27]} 31. Rb1 {[%clk 0:00:01]}  Ra3 {[%clk 0:00:20]} 0-1


[Site "https://www.chess.com"]

[Event "Titled Tuesday Blitz March 28 Late 2023"]
[White "Sreyas Payyappat"]
[Black "Florescu, Codrut-Constantin"]
[WhiteFideId "46674969"]
[BlackFideId "1202200"]
[WhiteElo "2083"]
[BlackElo "2191"]
[Result "1-0"]
[Round "06"]
[TimeControl "180+2"]
[Date "2023.03.28"]
[WhiteClock "0:00:10"]
[BlackClock "0:00:11"]

1. e3 {[%clk 0:02:57]}  c5 {[%clk 0:02:59]} 2. d4 {[%clk 0:02:56]}  d5 {[%clk 0:02:59]} 3. c4 {[%clk 0:02:55]}  e6 {[%clk 0:02:58]} 4. Nc3 {[%clk 0:02:55]}  Nf6 {[%clk 0:02:58]} 5. Nf3 {[%clk 0:02:55]}  a6 {[%clk 0:02:58]} 6. b3 {[%clk 0:02:50]}  Nc6 {[%clk 0:02:51]} 7. Bb2 {[%clk 0:02:50]}  cxd4 {[%clk 0:02:47]} 8. exd4 {[%clk 0:02:48]}  Ne4 {[%clk 0:02:46]} 9. Nxe4 {[%clk 0:02:38]}  dxe4 {[%clk 0:02:45]} 10. Nd2 {[%clk 0:02:33]}  Nxd4 {[%clk 0:02:41]} 11. Nxe4 {[%clk 0:02:30]}  Bb4+ {[%clk 0:02:40]} 12. Nc3 {[%clk 0:02:22]}  O-O {[%clk 0:02:36]} 13. Bd3 {[%clk 0:02:19]}  e5 {[%clk 0:02:35]} 14. O-O {[%clk 0:02:17]}  f5 {[%clk 0:02:29]} 15. Nd5 {[%clk 0:02:14]}  Bc5 {[%clk 0:02:25]} 16. Re1 {[%clk 0:02:03]}  Qd6 {[%clk 0:02:12]} 17. b4 {[%clk 0:01:52]}  Bxb4 {[%clk 0:02:01]} 18. Nxb4 {[%clk 0:01:51]}  Qxb4 {[%clk 0:02:01]} 19. Rb1 {[%clk 0:01:24]}  Qc5 {[%clk 0:01:45]} 20. Qd2 {[%clk 0:01:07]}  Bd7 {[%clk 0:01:10]} 21. Bc3 {[%clk 0:00:53]}  a5 {[%clk 0:00:53]} 22. Qe3 {[%clk 0:00:32]}  Rae8 {[%clk 0:00:44]} 23. Rxb7 {[%clk 0:00:24]}  Bc6 {[%clk 0:00:44]} 24. Rbb1 {[%clk 0:00:16]}  f4 {[%clk 0:00:40]} 25. Qd2 {[%clk 0:00:16]}  Rd8 {[%clk 0:00:30]} 26. Bxa5 {[%clk 0:00:13]}  Bxg2 {[%clk 0:00:19]} 27. Kxg2 {[%clk 0:00:12]}  Qc6+ {[%clk 0:00:18]} 28. Be4 {[%clk 0:00:11]}  Qf6 {[%clk 0:00:18]} 29. Bxd8 {[%clk 0:00:09]}  Rxd8 {[%clk 0:00:19]} 30. Qc3 {[%clk 0:00:09]}  Qg5+ {[%clk 0:00:18]} 31. Kh1 {[%clk 0:00:09]}  f3 {[%clk 0:00:18]} 32. Bxf3 {[%clk 0:00:09]}  Qf4 {[%clk 0:00:18]} 33. Be4 {[%clk 0:00:09]}  Qxf2 {[%clk 0:00:18]} 34. Qg3 {[%clk 0:00:10]}  Qf6 {[%clk 0:00:17]} 35. Rf1 {[%clk 0:00:10]}  Qd6 {[%clk 0:00:17]} 36. Bd5+ {[%clk 0:00:10]}  Kh8 {[%clk 0:00:17]} 37. Rg1 {[%clk 0:00:10]}  Qh6 {[%clk 0:00:16]} 38. Rbf1 {[%clk 0:00:08]}  Ne2 {[%clk 0:00:15]} 39. Qg5 {[%clk 0:00:08]}  Re8 {[%clk 0:00:07]} 40. Qxh6 {[%clk 0:00:06]}  gxh6 {[%clk 0:00:07]} 41. Rg4 {[%clk 0:00:04]}  Nf4 {[%clk 0:00:08]} 42. Rfg1 {[%clk 0:00:04]}  Ng6 {[%clk 0:00:09]} 43. Re4 {[%clk 0:00:04]}  Re7 {[%clk 0:00:09]} 44. Rge1 {[%clk 0:00:05]}  Kg7 {[%clk 0:00:08]} 45. a4 {[%clk 0:00:05]}  Kf6 {[%clk 0:00:09]} 46. a5 {[%clk 0:00:06]}  Nf4 {[%clk 0:00:09]} 47. a6 {[%clk 0:00:07]}  Ra7 {[%clk 0:00:10]} 48. Bb7 {[%clk 0:00:07]}  Kf5 {[%clk 0:00:10]} 49. Rxe5+ {[%clk 0:00:08]}  Kg4 {[%clk 0:00:10]} 50. Re7 {[%clk 0:00:09]}  Nh3 {[%clk 0:00:10]} 51. Rg7+ {[%clk 0:00:09]}  Kf4 {[%clk 0:00:11]} 52. Rf1+ {[%clk 0:00:10]}  Nf2+ {[%clk 0:00:11]} 53. Rxf2+ {[%clk 0:00:10]} 1-0


[Site "https://www.chess.com"]

[Event "Titled Tuesday Blitz March 28 Late 2023"]
[White "Vovk, Orest"]
[Black "Vlassov, Nikolai"]
[WhiteFideId "14113490"]
[BlackFideId "4103360"]
[WhiteElo "2215"]
[BlackElo "2324"]
[Result "0-1"]
[Round "06"]
[TimeControl "180+2"]
[Date "2023.03.28"]
[WhiteClock "0:00:07"]
[BlackClock "0:01:11"]

1. h4 {[%clk 0:02:54]}  e5 {[%clk 0:02:58]} 2. h5 {[%clk 0:02:54]}  h6 {[%clk 0:02:58]} 3. d4 {[%clk 0:02:54]}  exd4 {[%clk 0:02:58]} 4. Qxd4 {[%clk 0:02:54]}  Nc6 {[%clk 0:02:58]} 5. Qa4 {[%clk 0:02:53]}  Nf6 {[%clk 0:02:58]} 6. g4 {[%clk 0:02:54]}  d5 {[%clk 0:02:53]} 7. g5 {[%clk 0:02:54]}  Ne4 {[%clk 0:02:49]} 8. gxh6 {[%clk 0:02:30]}  Qf6 {[%clk 0:02:38]} 9. Nf3 {[%clk 0:02:23]}  Bc5 {[%clk 0:02:37]} 10. hxg7 {[%clk 0:02:06]}  Bxf2+ {[%clk 0:02:34]} 11. Kd1 {[%clk 0:02:06]}  Qxg7 {[%clk 0:02:32]} 12. Nc3 {[%clk 0:01:36]}  Qxc3 {[%clk 0:02:08]} 13. bxc3 {[%clk 0:01:37]}  Nxc3+ {[%clk 0:02:08]} 14. Kd2 {[%clk 0:01:34]}  Nxa4 {[%clk 0:02:08]} 15. Rh2 {[%clk 0:00:59]}  Bb6 {[%clk 0:02:02]} 16. Rh4 {[%clk 0:00:44]}  Ba5+ {[%clk 0:01:55]} 17. Ke3 {[%clk 0:00:38]}  Bc3 {[%clk 0:01:36]} 18. Rb1 {[%clk 0:00:34]}  d4+ {[%clk 0:01:36]} 19. Kf2 {[%clk 0:00:30]}  Bf5 {[%clk 0:01:33]} 20. Rxb7 {[%clk 0:00:23]}  O-O-O {[%clk 0:01:31]} 21. Rb5 {[%clk 0:00:20]}  Bxc2 {[%clk 0:01:30]} 22. Bh3+ {[%clk 0:00:19]}  f5 {[%clk 0:01:29]} 23. Bxf5+ {[%clk 0:00:16]}  Bxf5 {[%clk 0:01:28]} 24. Rxf5 {[%clk 0:00:17]}  Nb6 {[%clk 0:01:25]} 25. h6 {[%clk 0:00:15]}  d3 {[%clk 0:01:17]} 26. exd3 {[%clk 0:00:13]}  Rxd3 {[%clk 0:01:17]} 27. h7 {[%clk 0:00:10]}  Kb7 {[%clk 0:01:16]} 28. Bg5 {[%clk 0:00:09]}  Rd7 {[%clk 0:01:15]} 29. Bf6 {[%clk 0:00:05]}  Bxf6 {[%clk 0:01:14]} 30. Rxf6 {[%clk 0:00:06]}  Rhxh7 {[%clk 0:01:13]} 31. Rxh7 {[%clk 0:00:07]}  Rxh7 {[%clk 0:01:13]} 32. Rf4 {[%clk 0:00:07]}  Nd5 {[%clk 0:01:11]} 0-1


[Site "https://www.chess.com"]

[Event "Titled Tuesday Blitz March 28 Late 2023"]
[White "Petukhov, Dmitry"]
[Black "Domingo Nunez, Alejandro"]
[WhiteFideId "4142748"]
[BlackFideId "22245561"]
[WhiteElo "2311"]
[BlackElo "2230"]
[Result "0-1"]
[Round "06"]
[TimeControl "180+2"]
[Date "2023.03.28"]
[WhiteClock "0:00:12"]
[BlackClock "0:00:11"]

1. e4 {[%clk 0:03:00]}  g6 {[%clk 0:03:00]} 2. h4 {[%clk 0:02:59]}  Bg7 {[%clk 0:03:00]} 3. h5 {[%clk 0:02:59]}  c5 {[%clk 0:02:58]} 4. d3 {[%clk 0:02:51]}  Nc6 {[%clk 0:02:58]} 5. h6 {[%clk 0:02:50]}  Bf6 {[%clk 0:02:57]} 6. Nc3 {[%clk 0:02:50]}  e6 {[%clk 0:02:55]} 7. f4 {[%clk 0:02:48]}  Bh4+ {[%clk 0:02:40]} 8. Kd2 {[%clk 0:02:48]}  Nd4 {[%clk 0:02:36]} 9. Nf3 {[%clk 0:02:45]}  Bf6 {[%clk 0:02:35]} 10. e5 {[%clk 0:02:41]}  Nxf3+ {[%clk 0:02:34]} 11. Qxf3 {[%clk 0:02:41]}  Be7 {[%clk 0:02:35]} 12. Ne4 {[%clk 0:02:39]}  f5 {[%clk 0:02:27]} 13. Nd6+ {[%clk 0:02:34]}  Bxd6 {[%clk 0:02:26]} 14. exd6 {[%clk 0:02:35]}  Nf6 {[%clk 0:02:24]} 15. b3 {[%clk 0:02:34]}  Qa5+ {[%clk 0:02:21]} 16. Kd1 {[%clk 0:02:29]}  O-O {[%clk 0:02:07]} 17. Bb2 {[%clk 0:02:29]}  Ne8 {[%clk 0:01:59]} 18. Qe3 {[%clk 0:02:22]}  Qb6 {[%clk 0:01:43]} 19. Qe5 {[%clk 0:02:19]}  Kf7 {[%clk 0:01:39]} 20. Ba3 {[%clk 0:02:01]}  Qxd6 {[%clk 0:01:39]} 21. Qxd6 {[%clk 0:02:00]}  Nxd6 {[%clk 0:01:39]} 22. Bxc5 {[%clk 0:02:01]}  Ke7 {[%clk 0:01:39]} 23. Be2 {[%clk 0:01:41]}  b6 {[%clk 0:01:39]} 24. Bf3 {[%clk 0:01:41]}  Rb8 {[%clk 0:01:39]} 25. Ba3 {[%clk 0:01:39]}  Bb7 {[%clk 0:01:38]} 26. Bxb7 {[%clk 0:01:33]}  Rxb7 {[%clk 0:01:39]} 27. d4 {[%clk 0:01:27]}  Rc8 {[%clk 0:01:39]} 28. d5 {[%clk 0:01:26]}  b5 {[%clk 0:01:37]} 29. Bxd6+ {[%clk 0:01:24]}  Kxd6 {[%clk 0:01:37]} 30. dxe6 {[%clk 0:01:21]}  dxe6 {[%clk 0:01:30]} 31. Kd2 {[%clk 0:00:57]}  e5 {[%clk 0:01:29]} 32. fxe5+ {[%clk 0:00:55]}  Kxe5 {[%clk 0:01:29]} 33. Rhe1+ {[%clk 0:00:55]}  Kf6 {[%clk 0:01:29]} 34. Rad1 {[%clk 0:00:55]}  Rbc7 {[%clk 0:01:27]} 35. Rc1 {[%clk 0:00:55]}  Kg5 {[%clk 0:01:27]} 36. c3 {[%clk 0:00:54]}  Kxh6 {[%clk 0:01:25]} 37. Re5 {[%clk 0:00:53]}  Rd7+ {[%clk 0:01:03]} 38. Kc2 {[%clk 0:00:52]}  b4 {[%clk 0:00:59]} 39. c4 {[%clk 0:00:49]}  Rcd8 {[%clk 0:01:00]} 40. Re2 {[%clk 0:00:43]}  Kg5 {[%clk 0:01:00]} 41. Rf1 {[%clk 0:00:37]}  h5 {[%clk 0:00:58]} 42. Rff2 {[%clk 0:00:38]}  h4 {[%clk 0:00:59]} 43. Re6 {[%clk 0:00:37]}  Rd1 {[%clk 0:00:55]} 44. Ra6 {[%clk 0:00:33]}  R8d7 {[%clk 0:00:51]} 45. a3 {[%clk 0:00:30]}  Ra1 {[%clk 0:00:45]} 46. Kb2 {[%clk 0:00:27]}  Rdd1 {[%clk 0:00:44]} 47. a4 {[%clk 0:00:20]}  Rdb1+ {[%clk 0:00:37]} 48. Kc2 {[%clk 0:00:20]}  Ra2+ {[%clk 0:00:25]} 49. Kxb1 {[%clk 0:00:21]}  Rxf2 {[%clk 0:00:25]} 50. c5 {[%clk 0:00:21]}  Rxg2 {[%clk 0:00:20]} 51. c6 {[%clk 0:00:20]}  h3 {[%clk 0:00:21]} 52. c7 {[%clk 0:00:18]}  h2 {[%clk 0:00:22]} 53. c8=Q {[%clk 0:00:14]}  h1=Q+ {[%clk 0:00:07]} 54. Qc1+ {[%clk 0:00:14]}  Qxc1+ {[%clk 0:00:08]} 55. Kxc1 {[%clk 0:00:14]}  f4 {[%clk 0:00:09]} 56. Rxa7 {[%clk 0:00:12]}  f3 {[%clk 0:00:09]} 57. Rf7 {[%clk 0:00:13]}  Kg4 {[%clk 0:00:04]} 58. a5 {[%clk 0:00:13]}  Kg3 {[%clk 0:00:04]} 59. Kb1 {[%clk 0:00:11]}  f2 {[%clk 0:00:04]} 60. a6 {[%clk 0:00:12]}  Rg1+ {[%clk 0:00:03]} 61. Kb2 {[%clk 0:00:10]}  f1=Q {[%clk 0:00:03]} 62. Rxf1 {[%clk 0:00:07]}  Rxf1 {[%clk 0:00:04]} 63. Kc2 {[%clk 0:00:07]}  Rf8 {[%clk 0:00:05]} 64. Kd3 {[%clk 0:00:07]}  Ra8 {[%clk 0:00:05]} 65. Kc4 {[%clk 0:00:08]}  Rxa6 {[%clk 0:00:06]} 66. Kxb4 {[%clk 0:00:09]}  Ra1 {[%clk 0:00:07]} 67. Kc4 {[%clk 0:00:09]}  g5 {[%clk 0:00:07]} 68. b4 {[%clk 0:00:10]}  g4 {[%clk 0:00:08]} 69. Kd3 {[%clk 0:00:10]}  Rb1 {[%clk 0:00:09]} 70. Kc2 {[%clk 0:00:11]}  Rxb4 {[%clk 0:00:09]} 71. Kc3 {[%clk 0:00:11]}  Rf4 {[%clk 0:00:10]} 72. Kd3 {[%clk 0:00:12]}  Rf3+ {[%clk 0:00:11]} 0-1


[Site "https://www.chess.com"]

[Event "Titled Tuesday Blitz March 28 Late 2023"]
[White "Domingo Nunez, Ruben"]
[Black "Mortazavi, Ali"]
[WhiteFideId "22245570"]
[BlackFideId "401323"]
[WhiteElo "2404"]
[BlackElo "2339"]
[Result "0-1"]
[Round "06"]
[TimeControl "180+2"]
[Date "2023.03.28"]
[WhiteClock "0:00:02"]
[BlackClock "0:00:10"]

1. e4 {[%clk 0:03:00]}  c6 {[%clk 0:02:59]} 2. Qf3 {[%clk 0:02:58]}  d5 {[%clk 0:02:57]} 3. exd5 {[%clk 0:02:59]}  cxd5 {[%clk 0:02:57]} 4. Bb5+ {[%clk 0:02:58]}  Nc6 {[%clk 0:02:54]} 5. Ne2 {[%clk 0:02:59]}  Nf6 {[%clk 0:02:51]} 6. O-O {[%clk 0:02:58]}  Bd7 {[%clk 0:02:49]} 7. Nbc3 {[%clk 0:02:56]}  e6 {[%clk 0:02:48]} 8. d3 {[%clk 0:02:56]}  Be7 {[%clk 0:02:48]} 9. Bf4 {[%clk 0:02:55]}  O-O {[%clk 0:02:48]} 10. h3 {[%clk 0:02:55]}  a6 {[%clk 0:02:43]} 11. Ba4 {[%clk 0:02:56]}  b5 {[%clk 0:02:43]} 12. Bb3 {[%clk 0:02:56]}  Rc8 {[%clk 0:02:41]} 13. Rfe1 {[%clk 0:02:54]}  h6 {[%clk 0:02:35]} 14. Be3 {[%clk 0:02:32]}  Ne5 {[%clk 0:02:24]} 15. Qg3 {[%clk 0:02:32]}  Ng6 {[%clk 0:02:24]} 16. Nf4 {[%clk 0:02:23]}  Bd6 {[%clk 0:02:20]} 17. Qf3 {[%clk 0:02:23]}  Nh4 {[%clk 0:02:00]} 18. Qe2 {[%clk 0:02:08]}  d4 {[%clk 0:01:55]} 19. Bxd4 {[%clk 0:02:08]}  Bxf4 {[%clk 0:01:55]} 20. g3 {[%clk 0:02:09]}  e5 {[%clk 0:01:36]} 21. Ba7 {[%clk 0:01:59]}  Qc7 {[%clk 0:01:25]} 22. gxf4 {[%clk 0:01:59]}  Qxa7 {[%clk 0:01:25]} 23. fxe5 {[%clk 0:02:00]}  Nh7 {[%clk 0:01:20]} 24. Ne4 {[%clk 0:01:49]}  Be6 {[%clk 0:01:13]} 25. Kh2 {[%clk 0:01:18]}  Qd4 {[%clk 0:01:06]} 26. f4 {[%clk 0:01:10]}  Bxb3 {[%clk 0:01:00]} 27. cxb3 {[%clk 0:00:57]}  Ng6 {[%clk 0:00:47]} 28. Rf1 {[%clk 0:00:37]}  Nxf4 {[%clk 0:00:46]} 29. Rxf4 {[%clk 0:00:31]}  Qxe5 {[%clk 0:00:46]} 30. Rf1 {[%clk 0:00:32]}  Rce8 {[%clk 0:00:23]} 31. Qg2 {[%clk 0:00:20]}  f5 {[%clk 0:00:23]} 32. Ng3 {[%clk 0:00:16]}  g6 {[%clk 0:00:20]} 33. Qc6 {[%clk 0:00:15]}  Re6 {[%clk 0:00:17]} 34. Qc2 {[%clk 0:00:09]}  h5 {[%clk 0:00:15]} 35. d4 {[%clk 0:00:09]}  Qd6 {[%clk 0:00:15]} 36. Qg2 {[%clk 0:00:08]}  Kh8 {[%clk 0:00:14]} 37. d5 {[%clk 0:00:07]}  Re3 {[%clk 0:00:13]} 38. Kh1 {[%clk 0:00:05]}  Rfe8 {[%clk 0:00:10]} 39. R4f2 {[%clk 0:00:02]}  Rxg3 {[%clk 0:00:09]} 40. Qh2 {[%clk 0:00:02]}  Ng5 {[%clk 0:00:09]} 41. h4 {[%clk 0:00:02]}  Rh3 {[%clk 0:00:09]} 42. Qxh3 {[%clk 0:00:02]}  Nxh3 {[%clk 0:00:10]} 0-1


[Site "https://www.chess.com"]